{"text_format":"3","workbook":"xlsx","n_sheets":4,"sheets":["Inizio","Spese","Ricavi","Riepilogo"],"not_rendered":{"charts":1,"defined_names":2},"read":"whole","date_system":"1900"}

{"sheet":"Inizio","index":0,"n_rows":8,"n_cols":2,"rows_kept":8}
[null,"INFORMAZIONI SU QUESTO MODELLO"]
[null,"Questa cartella di lavoro Budget evento consente di tenere traccia delle spese sostenute e dei ricavi ottenuti durante un evento."]
[null,"Immettere il nome dell'evento e i dettagli nelle tabelle nei fogli di lavoro Spese ed Ricavi."]
[null,"Il totale uscite e il totale entrate vengono calcolati automaticamente."]
[null,"Il riepilogo e il grafico dei profitti e delle perdite vengono aggiornati automaticamente nel foglio di lavoro Riepilogo."]
[null,"Nota: "]
[null,"Nella colonna A di ciascun foglio di lavoro sono disponibili altre istruzioni. Questo testo è stato nascosto intenzionalmente. Per rimuovere il testo, selezionare la colonna A, quindi scegliere ELIMINA. Per visualizzare il testo, selezionare la colonna A, quindi modificare il colore del carattere."]
[null,"Per altre informazioni sulle tabelle, premere MAIUSC, quindi F10 in una tabella, selezionare l'opzione TABELLA, quindi selezionare TESTO ALTERNATIVO."]

{"sheet":"Spese","index":1,"n_rows":33,"n_cols":8,"rows_kept":33,"merged":[[0,5,0,7],[1,1,1,7],[2,6,2,7]]}
["Immettere le uscite stimate ed effettive per ogni categoria nelle rispettive tabelle in questo foglio di lavoro. Il totale delle uscite viene calcolato automaticamente. Nelle celle di questa colonna sono disponibili istruzioni utili per l'uso di questo foglio di lavoro. Freccia verso il basso per iniziare."]
["Immettere il nome dell'evento nella cella a destra per personalizzare il titolo di questo e altri fogli di lavoro.","Budget evento per \nNome evento"]
["L'etichetta Uscite si trova nella cella G3.",{"$nulls":5}," Uscite"]
["L'etichetta Stimate si trova nella cella G4 e l'etichetta Effettive nella cella H4.",{"$nulls":5},"Stimate","Effettive"]
["L'etichetta Totale uscite si trova nella cella a destra. Il totale uscite stimate viene calcolato automaticamente nella cella G5. Il totale uscite effettive e la barra dei dati che mostra il totale uscite effettive vengono aggiornati automaticamente nella cella H5. L'istruzione successiva si trova nella cella A7.","Totale uscite",{"$nulls":4},{"$f":"SUM(C12,C20,C26,C33,G12,G20,G25)","v":{"v":1145,"d":"€ 1,145.00"}},{"$f":"SUM(D12,D20,D26,D33,H12,H20,H25)","v":{"v":395,"d":"€ 395.00"}}]
[]
["Immettere le spese relative al sito nella tabella a partire dalla cella a destra e le spese per i rinfreschi nella tabella a partire dalla cella F7. L'istruzione successiva si trova nella cella A14.","Sito","Stimate","Effettive",null,"Rinfresco","Stimate","Effettive"]
[null,"Spese per sala e hall",{"v":500,"d":"€ 500.00"},{"v":250,"d":"€ 250.00"},null,"Cibo"]
[null,"Personale del sito",{"v":400,"d":"€ 400.00"},{"v":50,"d":"€ 50.00"},null,"Bevande"]
[null,"Apparecchiature",{"$nulls":3},"Biancheria da tavola"]
[null,"Tavoli e sedie",{"$nulls":3},"Personale e mance"]
[null,"Totale",{"$f":"SUBTOTAL(109,SpeseRelativeAlSito[Stimate])","v":{"v":900,"d":"€ 900.00"}},{"$f":"SUBTOTAL(109,SpeseRelativeAlSito[Effettive])","v":{"v":300,"d":"€ 300.00"}},null,"Totale",{"$f":"SUBTOTAL(109,SpesePerIRinfreschi[Stimate])","v":{"v":0,"d":"€ 0.00"}},{"$f":"SUBTOTAL(109,SpesePerIRinfreschi[Effettive])","v":{"v":0,"d":"€ 0.00"}}]
[]
["Immettere le spese relative alle decorazioni nella tabella a partire dalla cella a destra e le spese per il programma nella tabella a partire dalla cella F14. L'istruzione successiva si trova nella cella A22.","Decorazioni","Stimate","Effettive",null,"Programma","Stimate","Effettive"]
[null,"Fiori",{"v":200,"d":"€ 200.00"},{"v":50,"d":"€ 50.00"},null,"Musicisti"]
[null,"Candele",{"$nulls":3},"Relatori"]
[null,"Illuminazione",{"$nulls":3},"Viaggio"]
[null,"Palloncini",{"$nulls":3},"Hotel"]
[null,"Forniture carta",{"$nulls":3},"Altro"]
[null,"Totale",{"$f":"SUBTOTAL(109,SpeseRelativeAlleDecorazioni[Stimate])","v":{"v":200,"d":"€ 200.00"}},{"$f":"SUBTOTAL(109,SpeseRelativeAlleDecorazioni[Effettive])","v":{"v":50,"d":"€ 50.00"}},null,"Totale",{"$f":"SUBTOTAL(109,SpesePerIlProgramma[Stimate])","v":{"v":0,"d":"€ 0.00"}},{"$f":"SUBTOTAL(109,SpesePerIlProgramma[Effettive])","v":{"v":0,"d":"€ 0.00"}}]
[]
["Immettere le spese relative alla pubblicità nella tabella a partire dalla cella a destra e le spese per i premi nella tabella a partire dalla cella F22. L'istruzione successiva si trova nella cella A28.","Pubblicità","Stimate","Effettive",null,"Premi","Stimate","Effettive"]
[null,"Grafica",{"v":45,"d":"€ 45.00"},{"v":45,"d":"€ 45.00"},null,"Nastri/targhe/coppe"]
[null,"Fotocopie/stampa",{"$nulls":3},"Regali"]
[null,"Affrancatura",{"$nulls":3},"Totale",{"$f":"SUBTOTAL(109,SpesePerIPremi[Stimate])","v":{"v":0,"d":"€ 0.00"}},{"$f":"SUBTOTAL(109,SpesePerIPremi[Effettive])","v":{"v":0,"d":"€ 0.00"}}]
[null,"Totale",{"$f":"SUBTOTAL(109,SpeseRelativeAllaPubblicità[Stimate])","v":{"v":45,"d":"€ 45.00"}},{"$f":"SUBTOTAL(109,SpeseRelativeAllaPubblicità[Effettive])","v":{"v":45,"d":"€ 45.00"}}]
[]
["Immettere le spese varie nella tabella a partire dalla cella a destra.","Varie","Stimate","Effettive"]
[null,"Telefono"]
[null,"Trasporti"]
[null,"Cancelleria"]
[null,"Servizi fax"]
[null,"Totale",{"$f":"SUBTOTAL(109,SpeseVarie[Stimate])","v":{"v":0,"d":"€ 0.00"}},{"$f":"SUBTOTAL(109,SpeseVarie[Effettive])","v":{"v":0,"d":"€ 0.00"}}]

{"sheet":"Ricavi","index":2,"n_rows":30,"n_cols":7,"rows_kept":30,"merged":[[1,1,1,6],[2,5,2,6]]}
["Immettere le entrate stimate ed effettive per ogni categoria nelle rispettive tabelle in questo foglio di lavoro. Il totale delle entrate viene calcolato automaticamente. Nelle celle di questa colonna sono disponibili istruzioni utili per l'uso di questo foglio di lavoro. Freccia verso il basso per iniziare."]
["Il nome dell'evento viene aggiornato automaticamente nella cella a destra.",{"$f":"Spese!B2","v":"Budget evento per \nNome evento"}]
["L'etichetta Entrate si trova nella cella F3.",{"$nulls":4}," Entrate"]
["L'etichetta Stimate si trova nella cella F4 e l'etichetta Effettive nella cella G4.",{"$nulls":4},"Stimate","Effettive"]
["L'etichetta Totale entrate si trova nella cella a destra. Il totale delle entrate stimate viene calcolato automaticamente nella cella F5. Il totale delle entrate effettive e la barra dei dati che mostra il totale delle entrate effettive vengono aggiornati automaticamente nella cella G5.","Totale entrate",{"$nulls":3},{"$f":"SUM(Ingressi[[#Totals],[Totale stimate]],AnnunciInProgramma[[#Totals],[Totale stimate]],EspositoriFornitori[[#Totals],[Totale stimate]],VenditaDiArticoli[[#Totals],[Totale stimate]])","v":{"v":1936,"d":"€ 1,936.00"}},{"$f":"SUM(Ingressi[[#Totals],[Totale effettive]],AnnunciInProgramma[[#Totals],[Totale effettive]],EspositoriFornitori[[#Totals],[Totale effettive]],VenditaDiArticoli[[#Totals],[Totale effettive]])","v":{"v":1831,"d":"€ 1,831.00"}}]
["L'etichetta Ingressi si trova nella cella a destra.","Ingressi"]
["Immettere il numero stimate ed effettive di ingressi con i costi dei biglietti nella tabella a partire dalla cella a destra. Le entrate stimate ed effettive derivanti dagli ingressi vengono calcolate automaticamente. L'istruzione successiva si trova nella cella A12.","Stimate","Effettive","Tipo","Prezzo","Totale stimate","Totale effettive"]
[null,300,278,"Adulti",{"v":5,"d":"€ 5.00"},{"$f":"B8*E8","v":{"v":1500,"d":"€ 1,500.00"}},{"$f":"C8*E8","v":{"v":1390,"d":"€ 1,390.00"}}]
[null,197,195,"Bambini",{"v":2,"d":"€ 2.00"},{"$f":"B9*E9","v":{"v":394,"d":"€ 394.00"}},{"$f":"C9*E9","v":{"v":390,"d":"€ 390.00"}}]
[null,42,51,"Altro",{"v":1,"d":"€ 1.00"},{"v":42,"d":"€ 42.00"},{"v":51,"d":"€ 51.00"}]
[null," ",{"$nulls":3},{"$f":"SUBTOTAL(109,Ingressi[Totale stimate])","v":{"v":1936,"d":"€ 1,936.00"}},{"$f":"SUBTOTAL(109,Ingressi[Totale effettive])","v":{"v":1831,"d":"€ 1,831.00"}}]
["L'etichetta Annunci in programma si trova nella cella a destra.","Annunci in programma"]
["Immettere il numero stimate ed effettive di annunci in programma con le relative tariffe nella tabella a partire dalla cella a destra. Le entrate stimate ed effettive derivanti dagli annunci vengono calcolate automaticamente. L'istruzione successiva si trova nella cella A18.","Stimate","Effettive","Tipo","Prezzo","Totale stimate","Totale effettive"]
[{"$nulls":3},"Copertine",null,{"$f":"B14*E14","v":{"v":0,"d":"€ 0.00"}},{"$f":"C14*E14","v":{"v":0,"d":"€ 0.00"}}]
[{"$nulls":3},"Mezze pagine",null,{"$f":"B15*E15","v":{"v":0,"d":"€ 0.00"}},{"$f":"C15*E15","v":{"v":0,"d":"€ 0.00"}}]
[{"$nulls":3},"Quarti di pagina",null,{"v":0,"d":"€ 0.00"},{"v":0,"d":"€ 0.00"}]
[null," ",{"$nulls":3},{"$f":"SUBTOTAL(109,AnnunciInProgramma[Totale stimate])","v":{"v":0,"d":"€ 0.00"}},{"$f":"SUBTOTAL(109,AnnunciInProgramma[Totale effettive])","v":{"v":0,"d":"€ 0.00"}}]
["L'etichetta Espositori/fornitori si trova nella cella a destra.","Espositori/fornitori"]
["Immettere il numero stimate ed effettive di espositori o fornitori con le tariffe degli stand nella tabella a partire dalla cella a destra. Le entrate stimate ed effettive vengono calcolate automaticamente. L'istruzione successiva si trova nella cella A24.","Stimato","Effettive","Tipo","Prezzo","Totale stimate","Totale effettive"]
[{"$nulls":3},"Stand grandi",null,{"$f":"B20*E20","v":{"v":0,"d":"€ 0.00"}},{"$f":"C20*E20","v":{"v":0,"d":"€ 0.00"}}]
[{"$nulls":3},"Stand medi",null,{"$f":"B21*E21","v":{"v":0,"d":"€ 0.00"}},{"$f":"C21*E21","v":{"v":0,"d":"€ 0.00"}}]
[{"$nulls":3},"Stand piccoli",null,{"v":0,"d":"€ 0.00"},{"v":0,"d":"€ 0.00"}]
[null," ",{"$nulls":3},{"$f":"SUBTOTAL(109,EspositoriFornitori[Totale stimate])","v":{"v":0,"d":"€ 0.00"}},{"$f":"SUBTOTAL(109,EspositoriFornitori[Totale effettive])","v":{"v":0,"d":"€ 0.00"}}]
["L'etichetta Vendita di articoli si trova nella cella a destra.","Vendita di articoli"]
["Immettere il numero stimate ed effettive di articoli venduti con i rispettivi prezzi nella tabella a partire dalla cella a destra. Le entrate stimate ed effettive vengono calcolate automaticamente.","Stimate","Effettive","Tipo","Prezzo","Totale stimate","Totale effettive"]
[{"$nulls":3},"Articolo",null,{"$f":"B26*E26","v":{"v":0,"d":"€ 0.00"}},{"$f":"C26*E26","v":{"v":0,"d":"€ 0.00"}}]
[{"$nulls":3},"Articolo",null,{"$f":"B27*E27","v":{"v":0,"d":"€ 0.00"}},{"$f":"C27*E27","v":{"v":0,"d":"€ 0.00"}}]
[{"$nulls":3},"Articolo",null,{"v":0,"d":"€ 0.00"},{"v":0,"d":"€ 0.00"}]
[{"$nulls":3},"Articolo",null,{"v":0,"d":"€ 0.00"},{"v":0,"d":"€ 0.00"}]
[null," ",{"$nulls":3},{"$f":"SUBTOTAL(109,VenditaDiArticoli[Totale stimate])","v":{"v":0,"d":"€ 0.00"}},{"$f":"SUBTOTAL(109,VenditaDiArticoli[Totale effettive])","v":{"v":0,"d":"€ 0.00"}}]

{"sheet":"Riepilogo","index":3,"n_rows":9,"n_cols":4,"rows_kept":9,"merged":[[1,1,1,3],[2,2,2,3],[8,1,8,4],[9,1,9,3]]}
["Il riepilogo e il grafico dei profitti e delle perdite che mostra il totale entrate e delle uscite vengono creati automaticamente in questo foglio di lavoro. Nelle celle di questa colonna sono disponibili istruzioni utili per l'uso di questo foglio di lavoro. Freccia verso il basso per iniziare."]
["Il nome dell'evento viene aggiornato automaticamente nella cella a destra.",{"$f":"Spese!B2","v":"Budget evento per \nNome evento"}]
["L'etichetta Riepilogo profitti-perdite si trova nella cella C3. L'istruzione successiva si trova nella cella A5.",null,"Riepilogo profitti-perdite"]
[]
["La tabella dei totale che inizia nella cella a destra si aggiorna automaticamente. L'istruzione successiva si trova nella cella A9.","Totale","Stimate","Effettive"]
[null,"Totale entrate",{"$f":"Ricavi!F5","v":{"v":1936,"d":"€ 1,936.00"}},{"$f":"Ricavi!G5","v":{"v":1831,"d":"€ 1,831.00"}}]
[null,"Totale uscite",{"$f":"Spese!G5","v":{"v":1145,"d":"€ 1,145.00"}},{"$f":"Spese!H5","v":{"v":395,"d":"€ 395.00"}}]
[null,"Totale profitto (o perdita)",{"$f":"C6-C7","v":{"v":791,"d":"€ 791.00"}},{"$f":"D6-D7","v":{"v":1436,"d":"€ 1,436.00"}}]
["L'istogramma a colonne raggruppate che mostra il confronto tra il totale entrate effettive e il totale uscite si trova nella cella a destra.","L'istogramma a colonne raggruppate che mostra il confronto tra il totale entrate effettive e il totale uscite si trova in questa cella."]